[Event "*** SCC Grand Prix: Titled Tuesday Blitz"]
[Site "Chess.com"]
[Date "2020.07.21"]
[Round "9"]
[White "Gandrade2"]
[Black "Walter_White_Poland"]
[Result "1-0"]
[WhiteElo "2101"]
[BlackElo "2216"]
[TimeControl "180+1"]
[EndTime "11:48:52 PDT"]
[Termination "Gandrade2 won on time"]

1. d4 {[%clk 0:03:00.9]} 1... Nf6 {[%clk 0:02:59.7]} 2. c4 {[%clk 0:03:00.7]}
2... c5 {[%clk 0:02:59.8]} 3. d5 {[%clk 0:03:00.5]} 3... e6 {[%clk 0:03:00.2]}
4. Nc3 {[%clk 0:02:59.4]} 4... exd5 {[%clk 0:03:00.5]} 5. cxd5 {[%clk
0:03:00.3]} 5... d6 {[%clk 0:03:01]} 6. e4 {[%clk 0:03:00.1]} 6... g6 {[%clk
0:03:00.9]} 7. h3 {[%clk 0:03:00]} 7... Bg7 {[%clk 0:02:59.3]} 8. Nf3 {[%clk
0:03:00.2]} 8... O-O {[%clk 0:02:58.9]} 9. Bd3 {[%clk 0:03:00.5]} 9... b5 {[%clk
0:02:58.3]} 10. O-O {[%clk 0:02:59]} 10... a6 {[%clk 0:02:56.6]} 11. Re1 {[%clk
0:02:58.1]} 11... Bb7 {[%clk 0:02:52.3]} 12. Bf4 {[%clk 0:02:53.5]} 12... Qb6
{[%clk 0:02:33.1]} 13. Rc1 {[%clk 0:02:48.1]} 13... Nbd7 {[%clk 0:02:31]} 14. a3
{[%clk 0:02:45.1]} 14... Rfe8 {[%clk 0:02:28.4]} 15. b4 {[%clk 0:02:41.3]} 15...
Rac8 {[%clk 0:02:15.9]} 16. Qd2 {[%clk 0:02:29.2]} 16... Nh5 {[%clk 0:02:05.5]}
17. Be3 {[%clk 0:02:22.6]} 17... Qd8 {[%clk 0:01:55.8]} 18. Bg5 {[%clk
0:02:17.2]} 18... Bf6 {[%clk 0:01:53]} 19. Bxf6 {[%clk 0:02:15.6]} 19... Qxf6
{[%clk 0:01:52.8]} 20. Ne2 {[%clk 0:02:08.2]} 20... c4 {[%clk 0:00:58.8]} 21.
Bb1 {[%clk 0:02:07.3]} 21... Ne5 {[%clk 0:00:56.1]} 22. Nxe5 {[%clk 0:01:59.3]}
22... Qxe5 {[%clk 0:00:56.1]} 23. Rc3 {[%clk 0:01:36.5]} 23... Rc7 {[%clk
0:00:41.2]} 24. g3 {[%clk 0:01:24.3]} 24... Bc8 {[%clk 0:00:32]} 25. Kg2 {[%clk
0:01:19]} 25... Nf6 {[%clk 0:00:20.4]} 26. Nd4 {[%clk 0:01:16.8]} 26... Bb7
{[%clk 0:00:17.3]} 27. Nf3 {[%clk 0:01:14.9]} 27... Qe7 {[%clk 0:00:16.1]} 28.
Qg5 {[%clk 0:01:09.7]} 28... Nd7 {[%clk 0:00:13.5]} 29. Qf4 {[%clk 0:01:04.3]}
29... Ne5 {[%clk 0:00:13.5]} 30. Ng5 {[%clk 0:01:00.3]} 30... h6 {[%clk
0:00:10.3]} 31. Nf3 {[%clk 0:00:59.2]} 31... Nxf3 {[%clk 0:00:10.5]} 32. Qxf3
{[%clk 0:00:57.1]} 32... Bxd5 {[%clk 0:00:10.6]} 33. Rd1 {[%clk 0:00:51.6]}
33... Bb7 {[%clk 0:00:10.1]} 34. Qf4 {[%clk 0:00:49.3]} 34... Qe5 {[%clk
0:00:07.8]} 35. Qxe5 {[%clk 0:00:47.1]} 35... dxe5 {[%clk 0:00:08.2]} 36. Rf3
{[%clk 0:00:27.7]} 36... Kg7 {[%clk 0:00:07.8]} 37. g4 {[%clk 0:00:27.4]} 37...
Re6 {[%clk 0:00:06.5]} 38. Re3 {[%clk 0:00:27.8]} 38... c3 {[%clk 0:00:05.8]}
39. Bc2 {[%clk 0:00:26.5]} 39... f5 {[%clk 0:00:05.4]} 40. f3 {[%clk 0:00:25.3]}
40... fxe4 {[%clk 0:00:04.4]} 41. fxe4 {[%clk 0:00:25.6]} 41... Rf6 {[%clk
0:00:03.6]} 42. Rdd3 {[%clk 0:00:25.2]} 42... Rcf7 {[%clk 0:00:03]} 43. Rxc3
{[%clk 0:00:24.9]} 43... Rf2+ {[%clk 0:00:02.9]} 44. Kg3 {[%clk 0:00:25.5]}
44... Rf1 {[%clk 0:00:01.1]} 45. Re2 {[%clk 0:00:21.8]} 1-0

[Event "*** SCC Grand Prix: Titled Tuesday Blitz"]
[Site "Chess.com"]
[Date "2020.07.21"]
[Round "9"]
[White "Sanan_Sjugirov"]
[Black "okriak"]
[Result "0-1"]
[WhiteElo "2971"]
[BlackElo "2728"]
[TimeControl "180+1"]
[EndTime "11:48:54 PDT"]
[Termination "okriak won on time"]

1. d4 {[%clk 0:03:00.9]} 1... d5 {[%clk 0:02:59.7]} 2. c4 {[%clk 0:03:01]} 2...
e6 {[%clk 0:02:59.7]} 3. Nc3 {[%clk 0:03:00.4]} 3... c6 {[%clk 0:02:59.9]} 4.
Nf3 {[%clk 0:02:52.3]} 4... dxc4 {[%clk 0:02:59.4]} 5. a4 {[%clk 0:02:50.7]}
5... Bb4 {[%clk 0:02:58.5]} 6. e3 {[%clk 0:02:49.3]} 6... b5 {[%clk 0:02:58.2]}
7. Bd2 {[%clk 0:02:48.5]} 7... a5 {[%clk 0:02:57.9]} 8. axb5 {[%clk 0:02:43.6]}
8... Bxc3 {[%clk 0:02:57.5]} 9. Bxc3 {[%clk 0:02:43.2]} 9... cxb5 {[%clk
0:02:55.9]} 10. b3 {[%clk 0:02:43]} 10... Bb7 {[%clk 0:02:55.6]} 11. bxc4 {[%clk
0:02:43.1]} 11... b4 {[%clk 0:02:55.6]} 12. Bb2 {[%clk 0:02:43.3]} 12... Nf6
{[%clk 0:02:56]} 13. Bd3 {[%clk 0:02:36.6]} 13... O-O {[%clk 0:02:55.4]} 14. O-O
{[%clk 0:02:36.6]} 14... Nbd7 {[%clk 0:02:55.2]} 15. Nd2 {[%clk 0:02:33.1]}
15... e5 {[%clk 0:02:32.4]} 16. Bc2 {[%clk 0:02:15.3]} 16... Qc7 {[%clk
0:02:22.1]} 17. Re1 {[%clk 0:01:34.5]} 17... Rfe8 {[%clk 0:02:14]} 18. d5 {[%clk
0:01:32.1]} 18... Nb6 {[%clk 0:01:57.8]} 19. e4 {[%clk 0:01:19.6]} 19... Nfd7
{[%clk 0:01:50.1]} 20. f4 {[%clk 0:01:18.5]} 20... f6 {[%clk 0:01:43.1]} 21.
fxe5 {[%clk 0:01:17.8]} 21... Nxe5 {[%clk 0:01:42.7]} 22. Bd4 {[%clk 0:01:12.3]}
22... Nbxc4 {[%clk 0:01:32.4]} 23. Nxc4 {[%clk 0:01:13.2]} 23... Qxc4 {[%clk
0:01:31.8]} 24. Bb3 {[%clk 0:01:00.1]} 24... Qa6 {[%clk 0:01:26.7]} 25. Bxe5
{[%clk 0:00:50.7]} 25... Rxe5 {[%clk 0:01:19.9]} 26. Qd4 {[%clk 0:00:50.6]}
26... Qd6 {[%clk 0:01:17.1]} 27. Rec1 {[%clk 0:00:45]} 27... Kf8 {[%clk
0:01:07.8]} 28. Ba4 {[%clk 0:00:32]} 28... Rd8 {[%clk 0:00:53.2]} 29. Bb5 {[%clk
0:00:27.1]} 29... Bxd5 {[%clk 0:00:42.1]} 30. exd5 {[%clk 0:00:16.2]} 30... Rxd5
{[%clk 0:00:42]} 31. Qe4 {[%clk 0:00:16.2]} 31... Qb6+ {[%clk 0:00:32.6]} 32.
Kh1 {[%clk 0:00:15.8]} 32... Qxb5 {[%clk 0:00:32.9]} 33. Qxh7 {[%clk 0:00:15.9]}
33... Kf7 {[%clk 0:00:32.7]} 34. h3 {[%clk 0:00:12.7]} 34... R8d7 {[%clk
0:00:31.3]} 35. Re1 {[%clk 0:00:07.7]} 35... b3 {[%clk 0:00:27.1]} 36. Rab1
{[%clk 0:00:05.3]} 36... a4 {[%clk 0:00:26.9]} 37. Qe4 {[%clk 0:00:03.5]} 37...
Re5 {[%clk 0:00:26.6]} 38. Qg4 {[%clk 0:00:03]} 38... Rxe1+ {[%clk 0:00:26.2]}
39. Rxe1 {[%clk 0:00:03.9]} 39... b2 {[%clk 0:00:23.6]} 40. Qe4 {[%clk
0:00:04.1]} 40... Rd6 {[%clk 0:00:16.4]} 41. Qe7+ {[%clk 0:00:03.3]} 41... Kg6
{[%clk 0:00:16.8]} 42. Qxd6 {[%clk 0:00:01.6]} 42... b1=Q {[%clk 0:00:16.8]} 0-1

[Event "*** SCC Grand Prix: Titled Tuesday Blitz"]
[Site "Chess.com"]
[Date "2020.07.21"]
[Round "9"]
[White "dopolian"]
[Black "Roza_Idrisova"]
[Result "1-0"]
[WhiteElo "2416"]
[BlackElo "2243"]
[TimeControl "180+1"]
[EndTime "11:48:55 PDT"]
[Termination "dopolian won by resignation"]

1. Nf3 {[%clk 0:03:00.9]} 1... d5 {[%clk 0:02:59.2]} 2. d4 {[%clk 0:02:54.8]}
2... c6 {[%clk 0:02:59.2]} 3. b3 {[%clk 0:02:47.4]} 3... Nf6 {[%clk 0:02:59]} 4.
Bb2 {[%clk 0:02:47.7]} 4... Bg4 {[%clk 0:02:58.9]} 5. e3 {[%clk 0:02:47.6]} 5...
e6 {[%clk 0:02:58.6]} 6. Be2 {[%clk 0:02:47.6]} 6... Be7 {[%clk 0:02:58.7]} 7.
c4 {[%clk 0:02:47.9]} 7... O-O {[%clk 0:02:58]} 8. Nbd2 {[%clk 0:02:48.4]} 8...
a5 {[%clk 0:02:57.6]} 9. a3 {[%clk 0:02:47.7]} 9... Nbd7 {[%clk 0:02:57]} 10.
O-O {[%clk 0:02:47.5]} 10... Re8 {[%clk 0:02:55.5]} 11. Ne5 {[%clk 0:02:42.5]}
11... Bf5 {[%clk 0:02:53]} 12. Rc1 {[%clk 0:02:39]} 12... h6 {[%clk 0:02:52.9]}
13. f4 {[%clk 0:02:37.7]} 13... Ne4 {[%clk 0:02:52.2]} 14. g4 {[%clk 0:02:31.3]}
14... Bh7 {[%clk 0:02:50.5]} 15. Bf3 {[%clk 0:02:10.9]} 15... Nxd2 {[%clk
0:02:49.3]} 16. Qxd2 {[%clk 0:02:10.4]} 16... f6 {[%clk 0:02:49.8]} 17. Nxd7
{[%clk 0:02:10.8]} 17... Qxd7 {[%clk 0:02:49.7]} 18. Qe2 {[%clk 0:01:58.4]}
18... Bd6 {[%clk 0:02:49.1]} 19. Rfd1 {[%clk 0:01:54]} 19... Qe7 {[%clk
0:02:47.4]} 20. c5 {[%clk 0:01:50.3]} 20... Bc7 {[%clk 0:02:47.6]} 21. Qf2
{[%clk 0:01:34.6]} 21... e5 {[%clk 0:02:47]} 22. f5 {[%clk 0:01:34.9]} 22...
exd4 {[%clk 0:02:43.8]} 23. exd4 {[%clk 0:01:23.6]} 23... Qe3 {[%clk 0:02:41.2]}
24. Qxe3 {[%clk 0:01:07.4]} 24... Rxe3 {[%clk 0:02:38.3]} 25. Rc3 {[%clk
0:01:05.5]} 25... Rae8 {[%clk 0:02:32.2]} 26. Kf2 {[%clk 0:01:01.3]} 26... Rxc3
{[%clk 0:02:31.7]} 27. Bxc3 {[%clk 0:01:01.7]} 27... g6 {[%clk 0:02:21.3]} 28.
fxg6 {[%clk 0:00:59.5]} 28... Bxg6 {[%clk 0:02:20.9]} 29. h3 {[%clk 0:00:58.2]}
29... Kf7 {[%clk 0:02:15]} 30. Re1 {[%clk 0:00:51.3]} 30... Rxe1 {[%clk
0:02:13.8]} 31. Kxe1 {[%clk 0:00:43.3]} 31... Bc2 {[%clk 0:02:12.9]} 32. Bd1
{[%clk 0:00:34.5]} 32... Be4 {[%clk 0:02:08.9]} 33. Kf2 {[%clk 0:00:32]} 33...
f5 {[%clk 0:02:07]} 34. Bd2 {[%clk 0:00:23.5]} 34... Kg6 {[%clk 0:02:05.7]} 35.
Be3 {[%clk 0:00:16.3]} 35... b6 {[%clk 0:01:59.5]} 36. b4 {[%clk 0:00:10.7]}
36... axb4 {[%clk 0:01:58.8]} 37. axb4 {[%clk 0:00:11.1]} 37... bxc5 {[%clk
0:01:59]} 38. bxc5 {[%clk 0:00:11.2]} 38... f4 {[%clk 0:01:50.9]} 39. Bd2 {[%clk
0:00:11]} 39... Kg5 {[%clk 0:01:49.4]} 40. Ba4 {[%clk 0:00:10.5]} 40... Kh4
{[%clk 0:01:41.6]} 41. Bxc6 {[%clk 0:00:10.6]} 41... Kxh3 {[%clk 0:01:40.1]} 42.
Bd7 {[%clk 0:00:11.1]} 42... Kh4 {[%clk 0:01:34.3]} 43. Be6 {[%clk 0:00:11.2]}
43... Kg5 {[%clk 0:01:33.3]} 44. Bc1 {[%clk 0:00:08.7]} 44... h5 {[%clk
0:01:26.2]} 45. gxh5 {[%clk 0:00:08.5]} 45... Kxh5 {[%clk 0:01:25.7]} 46. Bd2
{[%clk 0:00:08.8]} 46... Kg5 {[%clk 0:01:25.4]} 47. Bb4 {[%clk 0:00:07.8]} 47...
Kh4 {[%clk 0:01:17]} 48. Be1 {[%clk 0:00:07.3]} 48... Kg5 {[%clk 0:01:14.7]} 49.
Ke2 {[%clk 0:00:07.4]} 49... f3+ {[%clk 0:01:13.8]} 50. Kf2 {[%clk 0:00:07.4]}
50... Bf4 {[%clk 0:01:12.2]} 51. Ba5 {[%clk 0:00:04.5]} 51... Kh4 {[%clk
0:01:11.1]} 52. Bd8+ {[%clk 0:00:04.5]} 52... Kh5 {[%clk 0:01:03.1]} 53. c6
{[%clk 0:00:04.8]} 53... Kg6 {[%clk 0:00:58.9]} 54. c7 {[%clk 0:00:04.9]} 54...
Bxc7 {[%clk 0:00:58.3]} 55. Bxc7 {[%clk 0:00:05.8]} 55... Kf6 {[%clk 0:00:57.7]}
56. Bg4 {[%clk 0:00:05.9]} 56... Kg5 {[%clk 0:00:57.2]} 57. Bxf3 {[%clk
0:00:06.2]} 57... Kf5 {[%clk 0:00:53.4]} 58. Bxe4+ {[%clk 0:00:05.3]} 58... Kxe4
{[%clk 0:00:53.5]} 59. Be5 {[%clk 0:00:05.6]} 59... Kd3 {[%clk 0:00:52.4]} 60.
Kf3 {[%clk 0:00:05.6]} 60... Kd2 {[%clk 0:00:51.5]} 61. Kf4 {[%clk 0:00:06.5]}
61... Kd3 {[%clk 0:00:50.7]} 62. Kf5 {[%clk 0:00:07.4]} 62... Kc4 {[%clk
0:00:50.5]} 63. Ke6 {[%clk 0:00:08.3]} 1-0

[Event "*** SCC Grand Prix: Titled Tuesday Blitz"]
[Site "Chess.com"]
[Date "2020.07.21"]
[Round "9"]
[White "Iljushin_Alexey"]
[Black "Harry_Rakkel"]
[Result "1-0"]
[WhiteElo "2694"]
[BlackElo "2543"]
[TimeControl "180+1"]
[EndTime "11:48:58 PDT"]
[Termination "Iljushin_Alexey won by checkmate"]

1. d4 {[%clk 0:03:00.9]} 1... Nf6 {[%clk 0:02:59.4]} 2. c4 {[%clk 0:03:00.5]}
2... e6 {[%clk 0:02:59]} 3. Nc3 {[%clk 0:03:00.7]} 3... d5 {[%clk 0:02:58.7]} 4.
Nf3 {[%clk 0:02:58.9]} 4... Nbd7 {[%clk 0:02:57.5]} 5. cxd5 {[%clk 0:02:55.6]}
5... exd5 {[%clk 0:02:56.5]} 6. Bg5 {[%clk 0:02:54.8]} 6... c6 {[%clk
0:02:55.5]} 7. e3 {[%clk 0:02:55.1]} 7... Be7 {[%clk 0:02:55.4]} 8. Bd3 {[%clk
0:02:55.3]} 8... O-O {[%clk 0:02:55.6]} 9. Qc2 {[%clk 0:02:55.3]} 9... Re8
{[%clk 0:02:55.8]} 10. h4 {[%clk 0:02:46.9]} 10... a5 {[%clk 0:02:50.6]} 11.
Bxf6 {[%clk 0:02:44.8]} 11... Nxf6 {[%clk 0:02:48.8]} 12. Ne5 {[%clk 0:02:40.3]}
12... c5 {[%clk 0:02:12.3]} 13. Bb5 {[%clk 0:02:29.5]} 13... Rf8 {[%clk
0:02:03.9]} 14. O-O-O {[%clk 0:02:28.3]} 14... c4 {[%clk 0:01:55.9]} 15. a4
{[%clk 0:02:20.2]} 15... Bb4 {[%clk 0:01:48.2]} 16. f3 {[%clk 0:02:16.9]} 16...
Ne8 {[%clk 0:01:24.3]} 17. e4 {[%clk 0:02:04.4]} 17... Bxc3 {[%clk 0:01:15.6]}
18. bxc3 {[%clk 0:01:54.5]} 18... f6 {[%clk 0:01:15.5]} 19. exd5 {[%clk
0:01:54.7]} 19... fxe5 {[%clk 0:01:10.9]} 20. dxe5 {[%clk 0:01:55]} 20... Bf5
{[%clk 0:01:04]} 21. Qf2 {[%clk 0:01:46.6]} 21... Bd3 {[%clk 0:01:01.4]} 22. d6
{[%clk 0:01:44.7]} 22... Kh8 {[%clk 0:00:38.6]} 23. Qd4 {[%clk 0:01:41.1]} 23...
Nc7 {[%clk 0:00:33.5]} 24. dxc7 {[%clk 0:01:35.9]} 24... Qxc7 {[%clk 0:00:34.4]}
25. f4 {[%clk 0:01:33.6]} 25... Rad8 {[%clk 0:00:29.8]} 26. Qe3 {[%clk
0:01:33.7]} 26... Qe7 {[%clk 0:00:29]} 27. Kb2 {[%clk 0:01:33.6]} 27... Rd5
{[%clk 0:00:27.6]} 28. g3 {[%clk 0:01:24.5]} 28... Rfd8 {[%clk 0:00:28.1]} 29.
Qb6 {[%clk 0:01:23.5]} 29... Be2 {[%clk 0:00:19.5]} 30. Rxd5 {[%clk 0:01:22.7]}
30... Rxd5 {[%clk 0:00:19.2]} 31. Rc1 {[%clk 0:01:20.8]} 31... h6 {[%clk
0:00:17.3]} 32. Rc2 {[%clk 0:01:19]} 32... Bd1 {[%clk 0:00:17.1]} 33. Rf2 {[%clk
0:01:16.7]} 33... Bb3 {[%clk 0:00:15.6]} 34. Qxa5 {[%clk 0:01:13.6]} 34... Qc5
{[%clk 0:00:15.5]} 35. Qa8+ {[%clk 0:01:09.1]} 35... Kh7 {[%clk 0:00:14.9]} 36.
Re2 {[%clk 0:01:04.3]} 36... Rd1 {[%clk 0:00:13.8]} 37. Qxb7 {[%clk 0:00:56.6]}
37... Qg1 {[%clk 0:00:12.3]} 38. Qe4+ {[%clk 0:00:55.8]} 38... Kh8 {[%clk
0:00:10.9]} 39. Qe3 {[%clk 0:00:50.8]} 39... Qf1 {[%clk 0:00:07.4]} 40. e6
{[%clk 0:00:46.5]} 40... Ra1 {[%clk 0:00:06.8]} 41. Re1 {[%clk 0:00:36.6]} 41...
Rxe1 {[%clk 0:00:06.9]} 42. Qd4 {[%clk 0:00:36.2]} 42... Re2+ {[%clk 0:00:04.6]}
43. Ka3 {[%clk 0:00:36]} 43... Qc1+ {[%clk 0:00:03.5]} 44. Kb4 {[%clk
0:00:35.3]} 44... Rxe6 {[%clk 0:00:03.8]} 45. Qd8+ {[%clk 0:00:32.5]} 45... Kh7
{[%clk 0:00:04.3]} 46. Bd7 {[%clk 0:00:32.6]} 46... Rf6 {[%clk 0:00:03.2]} 47.
f5 {[%clk 0:00:31.2]} 47... Qb1 {[%clk 0:00:03.5]} 48. Be6 {[%clk 0:00:29.7]}
48... Bc2+ {[%clk 0:00:04]} 49. Kc5 {[%clk 0:00:29.2]} 49... Bxf5 {[%clk
0:00:04.5]} 50. Qg8+ {[%clk 0:00:28.5]} 50... Kg6 {[%clk 0:00:05.1]} 51. Qe8+
{[%clk 0:00:28.4]} 51... Kh7 {[%clk 0:00:05.3]} 52. Bg8+ {[%clk 0:00:28.3]}
52... Kh8 {[%clk 0:00:05.4]} 53. Bf7+ {[%clk 0:00:28.4]} 53... Kh7 {[%clk
0:00:05.8]} 54. Qg8# {[%clk 0:00:28.4]} 1-0

[Event "*** SCC Grand Prix: Titled Tuesday Blitz"]
[Site "Chess.com"]
[Date "2020.07.21"]
[Round "9"]
[White "killer311"]
[Black "DenisQ"]
[Result "1/2-1/2"]
[WhiteElo "2417"]
[BlackElo "2628"]
[TimeControl "180+1"]
[EndTime "11:48:58 PDT"]
[Termination "Game drawn - insufficient material"]

1. d4 {[%clk 0:03:00.9]} 1... Nf6 {[%clk 0:02:58.9]} 2. c4 {[%clk 0:03:01.2]}
2... g6 {[%clk 0:02:57.5]} 3. g3 {[%clk 0:03:01.7]} 3... Bg7 {[%clk 0:02:56.8]}
4. Bg2 {[%clk 0:03:02.6]} 4... c6 {[%clk 0:02:55.4]} 5. Nf3 {[%clk 0:03:02.9]}
5... d5 {[%clk 0:02:54.9]} 6. O-O {[%clk 0:03:03.4]} 6... O-O {[%clk 0:02:53.4]}
7. b3 {[%clk 0:03:03.5]} 7... Ne4 {[%clk 0:02:52.1]} 8. Bb2 {[%clk 0:03:03.3]}
8... Bf5 {[%clk 0:02:51.2]} 9. Nc3 {[%clk 0:03:02.8]} 9... Nd7 {[%clk
0:02:49.6]} 10. cxd5 {[%clk 0:02:49.6]} 10... Nxc3 {[%clk 0:02:48.6]} 11. Bxc3
{[%clk 0:02:50.1]} 11... cxd5 {[%clk 0:02:49.5]} 12. Nh4 {[%clk 0:02:45.5]}
12... Be6 {[%clk 0:02:47.5]} 13. f4 {[%clk 0:02:41.4]} 13... Rc8 {[%clk
0:02:45.2]} 14. Bb2 {[%clk 0:02:36.5]} 14... Nf6 {[%clk 0:02:31.4]} 15. f5
{[%clk 0:02:35.2]} 15... gxf5 {[%clk 0:02:30.5]} 16. Nxf5 {[%clk 0:02:34.6]}
16... Bxf5 {[%clk 0:02:30.5]} 17. Rxf5 {[%clk 0:02:35.3]} 17... e6 {[%clk
0:02:30.6]} 18. Rf1 {[%clk 0:02:30.5]} 18... Ne4 {[%clk 0:02:29.9]} 19. Bxe4
{[%clk 0:02:26]} 19... dxe4 {[%clk 0:02:29.2]} 20. e3 {[%clk 0:02:26.9]} 20...
Qd5 {[%clk 0:02:25.9]} 21. Qe2 {[%clk 0:02:20.4]} 21... Rc7 {[%clk 0:02:22.7]}
22. Rac1 {[%clk 0:02:18.6]} 22... Rfc8 {[%clk 0:02:21.7]} 23. Rxc7 {[%clk
0:02:16.8]} 23... Rxc7 {[%clk 0:02:22.6]} 24. Rc1 {[%clk 0:02:17]} 24... Rxc1+
{[%clk 0:02:21.2]} 25. Bxc1 {[%clk 0:02:17.9]} 25... f5 {[%clk 0:02:16.8]} 26.
Ba3 {[%clk 0:02:15]} 26... Qc6 {[%clk 0:02:12.4]} 27. Qc4 {[%clk 0:01:59.5]}
27... Qxc4 {[%clk 0:02:08]} 28. bxc4 {[%clk 0:02:00.4]} 28... Kf7 {[%clk
0:02:08]} 29. h3 {[%clk 0:01:52.9]} 29... h5 {[%clk 0:02:07]} 30. Kf2 {[%clk
0:01:51.5]} 30... Bh6 {[%clk 0:02:03.7]} 31. Bd6 {[%clk 0:01:47.7]} 31... Bg5
{[%clk 0:01:45.5]} 32. Bf4 {[%clk 0:01:36.8]} 32... Bf6 {[%clk 0:01:45.2]} 33.
Ke2 {[%clk 0:01:35.3]} 33... Ke7 {[%clk 0:01:44.4]} 34. Kd2 {[%clk 0:01:34.5]}
34... Kd7 {[%clk 0:01:44.5]} 35. Kc3 {[%clk 0:01:34.4]} 35... Kc6 {[%clk
0:01:45.1]} 36. Kb4 {[%clk 0:01:34.3]} 36... a6 {[%clk 0:01:42]} 37. a4 {[%clk
0:01:33.9]} 37... Be7+ {[%clk 0:01:40.8]} 38. Kb3 {[%clk 0:01:33.4]} 38... Bd8
{[%clk 0:01:39.9]} 39. Kb4 {[%clk 0:01:23.9]} 39... Be7+ {[%clk 0:01:35.3]} 40.
Kb3 {[%clk 0:01:24]} 40... Bf8 {[%clk 0:01:26.9]} 41. Bg5 {[%clk 0:01:18.8]}
41... Bd6 {[%clk 0:01:22.7]} 42. Bf4 {[%clk 0:01:18.7]} 42... Be7 {[%clk
0:01:22.8]} 43. Be5 {[%clk 0:01:14]} 43... Bg5 {[%clk 0:01:12.5]} 44. Bf4 {[%clk
0:01:13.9]} 44... Bd8 {[%clk 0:01:12.4]} 45. Be5 {[%clk 0:01:12.6]} 45... Ba5
{[%clk 0:01:11.7]} 46. Bf4 {[%clk 0:01:10.6]} 46... Be1 {[%clk 0:01:10.8]} 47.
Be5 {[%clk 0:01:09.5]} 47... b5 {[%clk 0:01:08.4]} 48. axb5+ {[%clk 0:01:08]}
48... axb5 {[%clk 0:01:09.3]} 49. Bf4 {[%clk 0:01:06.5]} 49... Bf2 {[%clk
0:01:07.7]} 50. Kb4 {[%clk 0:01:01.8]} 50... Be1+ {[%clk 0:01:07.6]} 51. Kb3
{[%clk 0:01:01.2]} 51... Bd2 {[%clk 0:01:07.8]} 52. Bg5 {[%clk 0:00:58.2]} 52...
Ba5 {[%clk 0:01:06.9]} 53. Bf4 {[%clk 0:00:57]} 53... Be1 {[%clk 0:01:02.9]} 54.
Be5 {[%clk 0:00:54.3]} 54... h4 {[%clk 0:01:00.3]} 55. gxh4 {[%clk 0:00:53.4]}
55... Bxh4 {[%clk 0:01:01.2]} 56. Bf4 {[%clk 0:00:53.8]} 56... Bf2 {[%clk
0:01:00.6]} 57. Bg5 {[%clk 0:00:52.8]} 57... Bg3 {[%clk 0:00:57.5]} 58. h4
{[%clk 0:00:51.9]} 58... bxc4+ {[%clk 0:00:53.6]} 59. Kxc4 {[%clk 0:00:51.2]}
59... Kd7 {[%clk 0:00:53.3]} 60. h5 {[%clk 0:00:51.3]} 60... Ke8 {[%clk
0:00:53.3]} 61. d5 {[%clk 0:00:47]} 61... exd5+ {[%clk 0:00:53]} 62. Kxd5 {[%clk
0:00:47.9]} 62... Kf7 {[%clk 0:00:53.4]} 63. Bd8 {[%clk 0:00:37.2]} 63... Bb8
{[%clk 0:00:50.9]} 64. Bb6 {[%clk 0:00:34]} 64... Kf6 {[%clk 0:00:49.9]} 65.
Bd4+ {[%clk 0:00:33.1]} 65... Kg5 {[%clk 0:00:49.8]} 66. Ke6 {[%clk 0:00:33.4]}
66... f4 {[%clk 0:00:48]} 67. exf4+ {[%clk 0:00:32.8]} 67... Bxf4 {[%clk
0:00:48.3]} 68. Kd5 {[%clk 0:00:32.6]} 68... e3 {[%clk 0:00:48.3]} 69. Bxe3
{[%clk 0:00:32]} 69... Bxe3 {[%clk 0:00:48.1]} 70. h6 {[%clk 0:00:32.6]} 70...
Kxh6 {[%clk 0:00:48]} 1/2-1/2

[Event "*** SCC Grand Prix: Titled Tuesday Blitz"]
[Site "Chess.com"]
[Date "2020.07.21"]
[Round "9"]
[White "Phriex"]
[Black "SilviusTiberius"]
[Result "1-0"]
[WhiteElo "2397"]
[BlackElo "2485"]
[TimeControl "180+1"]
[EndTime "11:49:00 PDT"]
[Termination "Phriex won on time"]

1. d4 {[%clk 0:03:00.9]} 1... Nf6 {[%clk 0:02:58.6]} 2. c4 {[%clk 0:03:01.5]}
2... g6 {[%clk 0:02:57.9]} 3. g3 {[%clk 0:03:01.3]} 3... Bg7 {[%clk 0:02:58.2]}
4. Bg2 {[%clk 0:03:01.9]} 4... O-O {[%clk 0:02:58.8]} 5. Nc3 {[%clk 0:03:02.4]}
5... d6 {[%clk 0:02:59.4]} 6. Nf3 {[%clk 0:03:03]} 6... Nc6 {[%clk 0:02:59.7]}
7. O-O {[%clk 0:03:03.4]} 7... Rb8 {[%clk 0:03:00.2]} 8. Bf4 {[%clk 0:03:02.7]}
8... a6 {[%clk 0:02:59.3]} 9. Rc1 {[%clk 0:03:01]} 9... h6 {[%clk 0:02:59.7]}
10. Qd3 {[%clk 0:02:55.6]} 10... g5 {[%clk 0:02:51.4]} 11. Bd2 {[%clk
0:02:37.9]} 11... e5 {[%clk 0:02:28.8]} 12. dxe5 {[%clk 0:02:27.7]} 12... dxe5
{[%clk 0:02:26.5]} 13. Qxd8 {[%clk 0:02:11.7]} 13... Rxd8 {[%clk 0:02:25.3]} 14.
Rfd1 {[%clk 0:02:11.6]} 14... Be6 {[%clk 0:02:20.7]} 15. b3 {[%clk 0:02:09.7]}
15... e4 {[%clk 0:01:23.1]} 16. Ne1 {[%clk 0:02:06.5]} 16... Bf5 {[%clk
0:01:23.4]} 17. Nc2 {[%clk 0:01:44.9]} 17... Bg6 {[%clk 0:01:15]} 18. Ne3 {[%clk
0:01:42.6]} 18... Nd4 {[%clk 0:01:14.2]} 19. Re1 {[%clk 0:01:33.8]} 19... c6
{[%clk 0:01:12.8]} 20. Rcd1 {[%clk 0:01:06.4]} 20... b5 {[%clk 0:01:12.8]} 21.
Bc1 {[%clk 0:00:53.6]} 21... Bf8 {[%clk 0:00:55.2]} 22. Bb2 {[%clk 0:00:51.1]}
22... Bb4 {[%clk 0:00:45.9]} 23. a3 {[%clk 0:00:48.9]} 23... Ba5 {[%clk
0:00:37.9]} 24. b4 {[%clk 0:00:47.5]} 24... Bb6 {[%clk 0:00:26.6]} 25. c5 {[%clk
0:00:46]} 25... Bc7 {[%clk 0:00:26.7]} 26. Nxe4 {[%clk 0:00:26.5]} 26... Nxe2+
{[%clk 0:00:22.6]} 27. Rxe2 {[%clk 0:00:26.7]} 27... Nxe4 {[%clk 0:00:20.5]} 28.
h4 {[%clk 0:00:14.1]} 28... gxh4 {[%clk 0:00:14.7]} 29. gxh4 {[%clk 0:00:14.1]}
29... h5 {[%clk 0:00:14.4]} 30. Bxe4 {[%clk 0:00:09.1]} 30... Bxe4 {[%clk
0:00:14]} 31. Bf6 {[%clk 0:00:09.3]} 31... Rxd1+ {[%clk 0:00:12.6]} 32. Nxd1
{[%clk 0:00:10.2]} 32... Bf3 {[%clk 0:00:13.4]} 33. Re7 {[%clk 0:00:07.1]} 33...
Bd8 {[%clk 0:00:09.6]} 34. Re8+ {[%clk 0:00:06.4]} 34... Kh7 {[%clk 0:00:10.1]}
35. Ne3 {[%clk 0:00:03.2]} 35... Bxf6 {[%clk 0:00:06.4]} 36. Rxb8 {[%clk
0:00:03.2]} 36... Bxh4 {[%clk 0:00:07.1]} 37. Rb7 {[%clk 0:00:03.2]} 37... Kg6
{[%clk 0:00:06.7]} 38. Rb6 {[%clk 0:00:03.8]} 38... Bg5 {[%clk 0:00:06.6]} 39.
Rxa6 {[%clk 0:00:04.1]} 39... h4 {[%clk 0:00:07.2]} 40. a4 {[%clk 0:00:03.8]}
40... bxa4 {[%clk 0:00:06.1]} 41. b5 {[%clk 0:00:04.1]} 41... h3 {[%clk
0:00:06.8]} 42. Kh2 {[%clk 0:00:03.5]} 1-0